fUST/lending_fUST_20250212
["ID","MTS","AMOUNT","RATE_DAILY","PERIOD"]
[352839713,1739356253404,-500.0,0.00013633,2]
[352839714,1739356253414,-151.0,0.00013633,2]
[352839715,1739356253423,-500.0,0.00013635,2]
[352839716,1739356253433,-500.23501456,0.00013698,2]
[352839717,1739356253442,-5902.37700633,0.00013698,2]
[352839718,1739356253452,-1000.0,0.00013698,2]
[352839719,1739356253461,-1084.16513233,0.00013698,2]
[352839720,1739356253470,-628.278329,0.00013699,2]
[352839721,1739356253479,-1570.74257,0.00013699,2]
[352839722,1739356253491,-500.48518007,0.00013699,2]
[352839723,1739356253500,-500.0,0.00013699,2]
[352839724,1739356253510,-151.0,0.00013699,2]
[352839725,1739356253522,-151.0,0.00013699,2]
[352839726,1739356253533,-151.0,0.00013699,2]
[352839727,1739356253546,-151.0,0.00013699,2]
[352839728,1739356253555,-500.0,0.00013699,2]
[352839729,1739356253564,-500.0,0.00013699,2]
[352839730,1739356253573,-500.0,0.00013699,2]
[352839731,1739356253586,-500.0,0.00013699,2]
[352839732,1739356253595,-500.0,0.00013699,2]
[352839733,1739356253606,-500.0,0.00013699,2]
[352839734,1739356253616,-500.0,0.00013699,2]
[352839735,1739356253626,-500.0,0.00013699,2]
[352839736,1739356253636,-500.0,0.00013699,2]
[352839737,1739356253646,-500.0,0.00013699,2]
[352839738,1739356253657,-500.0,0.00013699,2]
[352839739,1739356253667,-500.0,0.00013699,2]
[352839740,1739356253676,-500.0,0.00013699,2]
[352839741,1739356253685,-500.0,0.00013699,2]
[352839742,1739356253695,-500.0,0.00013699,2]
[352839743,1739356253704,-500.0,0.00013699,2]
[352839744,1739356253714,-500.0,0.00013699,2]
[352839745,1739356253722,-500.0,0.00013699,2]
[352839746,1739356253732,-500.0,0.00013699,2]
[352839747,1739356253741,-500.0,0.00013699,2]
[352839748,1739356253750,-500.0,0.00013699,2]
[352839749,1739356253760,-500.0,0.00013699,2]
[352839750,1739356253770,-500.0,0.00013699,2]
[352839751,1739356253779,-500.0,0.00013699,2]
[352839752,1739356253789,-500.0,0.00013699,2]
[352839753,1739356253800,-270.96689458,0.00013699,2]
[352839754,1739356253809,-500.0,0.00013699,2]
[352839755,1739356253819,-500.0,0.00013699,2]
[352839756,1739356253829,-500.0,0.00013699,2]
[352839757,1739356253838,-500.0,0.00013699,2]
[352839758,1739356253849,-500.0,0.00013699,2]
[352839759,1739356253859,-500.0,0.00013699,2]
[352839760,1739356253869,-500.0,0.00013699,2]
[352839761,1739356253879,-500.0,0.00013699,2]
[352839762,1739356253888,-500.0,0.00013699,2]
[352839763,1739356253898,-500.0,0.00013699,2]
[352839764,1739356253908,-500.0,0.00013699,2]
[352839765,1739356253919,-500.0,0.00013699,2]
[352839766,1739356253928,-500.0,0.00013699,2]
[352839767,1739356253937,-500.0,0.00013699,2]
[352839768,1739356253947,-500.0,0.00013699,2]
[352839769,1739356253956,-500.0,0.00013699,2]
[352839770,1739356253966,-500.0,0.00013699,2]
[352839771,1739356253975,-500.0,0.00013699,2]
[352839772,1739356253985,-500.0,0.00013699,2]
[352839773,1739356253995,-500.0,0.00013699,2]
[352839774,1739356254005,-500.0,0.00013699,2]
[352839775,1739356254015,-300.0,0.00013699,2]
[352839776,1739356254026,-500.0,0.00013699,2]
[352839777,1739356254035,-500.0,0.00013699,2]
[352839778,1739356254043,-500.0,0.00013699,2]
[352839779,1739356254053,-151.01526129,0.00013748,2]
[352839780,1739356254062,-502.51,0.00013768,2]
[352839781,1739356254073,-575.68,0.00013769,2]
[352839782,1739356254083,-1116.86,0.00013769,2]
[352839783,1739356254093,-788.88,0.00013769,2]
[352839784,1739356254103,-500.0,0.00013769,2]
[352839785,1739356254116,-520.44,0.00013769,2]
[352839786,1739356254127,-1229.32,0.00013769,2]
[352839787,1739356254137,-500.0,0.00013769,2]
[352839788,1739356254147,-529.85,0.00013769,2]
[352839789,1739356254156,-500.0,0.00013769,2]
[352839790,1739356254168,-1069.82,0.00013769,2]
[352839791,1739356254178,-500.0,0.0001377,2]
[352839792,1739356254188,-500.0,0.0001377,2]
[352839793,1739356254199,-505.69,0.0001377,2]
[352839794,1739356254210,-4159.56,0.0001377,2]
[352839795,1739356254222,-507.54,0.0001377,2]
[352839796,1739356254232,-500.0,0.0001377,2]
[352839797,1739356254242,-10088.41,0.0001377,2]
[352839798,1739356254252,-500.0,0.0001377,2]
[352839799,1739356254262,-3536.94,0.0001377,2]
[352839800,1739356254272,-151.0,0.0001377,2]
[352839801,1739356254284,-151.0,0.0001377,2]
[352839802,1739356254293,-219.234385,0.0001377,2]
[352839803,1739356254303,-500.0,0.0001377,2]
[352839804,1739356254312,-219.234385,0.0001377,2]
[352839805,1739356254322,-151.0,0.0001377,2]
[352839806,1739356254332,-500.0,0.0001377,2]
[352839807,1739356254342,-151.0,0.0001377,2]
[352839808,1739356254352,-151.0,0.0001377,2]
[352839809,1739356254363,-500.0,0.0001377,2]
[352839810,1739356254372,-500.0,0.00013772,2]
[352839811,1739356254382,-151.0,0.000138,2]
[352839812,1739356254393,-185.73208976,0.0001386,2]
[352839813,1739356254403,-151.0,0.000139,2]
[352839814,1739356254415,-502.51,0.00013905,2]
[352839815,1739356254424,-575.68,0.00013906,2]
[352839816,1739356254434,-1116.86,0.00013906,2]
[352839817,1739356254444,-788.88,0.00013906,2]
[352839818,1739356254454,-500.0,0.00013906,2]
[352839819,1739356254464,-520.44,0.00013906,2]
[352839820,1739356254475,-1229.32,0.00013906,2]
[352839821,1739356254485,-500.0,0.00013906,2]
[352839822,1739356254496,-529.85,0.00013906,2]
[352839823,1739356254506,-500.0,0.00013906,2]
[352839824,1739356254516,-1069.82,0.00013906,2]
[352839825,1739356254525,-500.0,0.00013907,2]
[352839826,1739356254534,-555.78843858,0.00013907,2]
[352839827,1739356254544,-505.69,0.00013907,2]
[352839828,1739356254552,-4159.56,0.00013907,2]
[352839829,1739356254562,-507.54,0.00013907,2]
[352839830,1739356254670,-10088.41,0.00013907,2]
[352839831,1739356254681,-500.0,0.00013907,2]
[352839832,1739356254690,-3536.94,0.00013907,2]
[352839833,1739356254699,-500.0,0.00013907,2]
[352839834,1739356254710,-500.0,0.00013907,2]
[352839835,1739356254719,-500.0,0.00013907,2]
[352839836,1739356254729,-500.0,0.00013909,2]
[352839837,1739356254739,-252.802,0.00013981,2]
[352839838,1739356254749,-502.51,0.00014042,2]
[352839839,1739356254759,-575.68,0.00014043,2]
[352839840,1739356254768,-1116.86,0.00014043,2]
[352839841,1739356254778,-788.88,0.00014043,2]
[352839842,1739356254788,-500.0,0.00014043,2]
[352839843,1739356254799,-520.44,0.00014043,2]
[352839844,1739356254809,-1229.32,0.00014043,2]
[352839845,1739356254819,-500.0,0.00014043,2]
[352839846,1739356254829,-529.85,0.00014043,2]
[352839847,1739356254838,-500.0,0.00014043,2]
[352839848,1739356254848,-1069.82,0.00014043,2]
[352839849,1739356254858,-176.82,0.00014044,2]
[352839850,1739356254868,-505.69,0.00014044,2]
[352839851,1739356254879,-4159.56,0.00014044,2]
[352839852,1739356254889,-507.54,0.00014044,2]
[352839853,1739356254899,-10088.41,0.00014044,2]
[352839854,1739356254911,-500.0,0.00014044,2]
[352839855,1739356254921,-3536.94,0.00014044,2]
[352839856,1739356254932,-500.0,0.00014044,2]
[352839857,1739356254941,-500.0,0.00014044,2]
[352839858,1739356254952,-500.0,0.00014044,2]
[352839859,1739356254961,-151.0,0.00014045,2]
[352839860,1739356254970,-151.0,0.00014045,2]
[352839861,1739356254980,-264.96487,0.00014045,2]
[352839862,1739356254990,-264.96487,0.00014045,2]
[352839863,1739356255000,-151.0,0.00014045,2]
[352839864,1739356255011,-500.0,0.00014046,2]
[352839865,1739356255021,-151.0,0.000141,2]
[352839866,1739356255031,-151.0,0.000141,2]
[352839867,1739356255040,-502.51,0.00014179,2]
[352839868,1739356255053,-575.68,0.0001418,2]
[352839869,1739356255063,-1116.86,0.0001418,2]
[352839870,1739356255073,-788.88,0.0001418,2]
[352839871,1739356255083,-500.0,0.0001418,2]
[352839872,1739356255093,-520.44,0.0001418,2]
[352839873,1739356255102,-1229.32,0.0001418,2]
[352839874,1739356255115,-500.0,0.0001418,2]
[352839875,1739356255126,-529.85,0.0001418,2]
[352839876,1739356255135,-500.0,0.0001418,2]
[352839877,1739356255145,-1069.82,0.0001418,2]
[352839878,1739356255155,-505.69,0.00014181,2]
[352839879,1739356255164,-4159.56,0.00014181,2]
[352839880,1739356255173,-507.54,0.00014181,2]
[352839881,1739356255184,-151.0,0.00014181,2]
[352839882,1739356255193,-151.0,0.00014181,2]
[352839883,1739356255202,-10088.41,0.00014181,2]
[352839884,1739356255212,-500.0,0.00014181,2]
[352839885,1739356255221,-3536.94,0.00014181,2]
[352839886,1739356255231,-344.02129725,0.00014181,2]
[352839887,1739356255240,-500.0,0.00014181,2]
[352839888,1739356255251,-500.0,0.00014181,2]
[352839889,1739356255260,-151.580436,0.00014183,2]
[352839890,1739356255270,-151.0,0.00014183,2]
[352839891,1739356255279,-500.0,0.00014183,2]
[352839892,1739356255290,-590.5245707,0.0001431,2]
[352839893,1739356255301,-500.0,0.00014313,2]
[352839894,1739356255310,-502.51,0.00014316,2]
[352839895,1739356255319,-575.68,0.00014317,2]
[352839896,1739356255329,-1116.86,0.00014317,2]
[352839897,1739356255338,-788.88,0.00014317,2]
[352839898,1739356255348,-500.0,0.00014317,2]
[352839899,1739356255358,-520.44,0.00014317,2]
[352839900,1739356255367,-1229.32,0.00014317,2]
[352839901,1739356255376,-500.0,0.00014317,2]
[352839902,1739356255386,-529.85,0.00014317,2]
[352839903,1739356255395,-500.0,0.00014317,2]
[352839904,1739356255404,-1069.82,0.00014317,2]
[352839905,1739356255413,-505.69,0.00014318,2]
[352839906,1739356255422,-4159.56,0.00014318,2]
[352839907,1739356255432,-507.54,0.00014318,2]
[352839908,1739356255442,-10088.41,0.00014318,2]
[352839909,1739356255451,-500.0,0.00014318,2]
[352839910,1739356255460,-3536.94,0.00014318,2]
[352839911,1739356255470,-500.0,0.00014318,2]
[352839912,1739356255479,-500.0,0.00014318,2]
[352839913,1739356255488,-228.823075,0.00014318,2]
[352839914,1739356255497,-500.0,0.0001432,2]
[352839915,1739356255506,-151.0,0.0001432,2]
[352839916,1739356255515,-151.0,0.0001432,2]
[352839917,1739356255525,-151.0,0.000144,2]
[352839918,1739356255534,-590.5245707,0.0001441,2]
[352839919,1739356255545,-153.03811802,0.00014433,2]
[352839920,1739356255554,-502.51,0.00014453,2]
[352839921,1739356255563,-575.68,0.00014454,2]
[352839922,1739356255572,-1116.86,0.00014454,2]
[352839923,1739356255582,-788.88,0.00014454,2]
[352839924,1739356255591,-341.03,0.00014454,2]
[352839925,1739356255600,-520.44,0.00014454,2]
[352839926,1739356255609,-1229.32,0.00014454,2]
[352839927,1739356255619,-500.0,0.00014454,2]
[352839928,1739356255627,-529.85,0.00014454,2]
[352839929,1739356255637,-500.0,0.00014454,2]
[352839930,1739356255646,-1069.82,0.00014454,2]
[352839931,1739356255655,-5399.75365865,0.00014455,5]
[352839932,1739356255665,-505.69,0.00014455,2]
[352839933,1739356255674,-4159.56,0.00014455,2]
[352839934,1739356255684,-507.54,0.00014455,2]
[352839935,1739356255693,-10088.41,0.00014455,2]
[352839936,1739356255702,-500.0,0.00014455,2]
[352839937,1739356255712,-3536.94,0.00014455,2]
[352839938,1739356255721,-500.0,0.00014455,2]
[352839939,1739356255730,-225.22,0.00014455,2]
[352839940,1739356255739,-500.0,0.00014457,2]
[352839941,1739356255748,-590.5245707,0.0001451,2]
[352839942,1739356255757,-502.51,0.0001459,2]
[352839943,1739356255766,-575.68,0.00014591,2]
[352839944,1739356255775,-1116.86,0.00014591,2]
[352839945,1739356255784,-788.88,0.00014591,2]
[352839946,1739356255795,-520.44,0.00014591,2]
[352839947,1739356255804,-1229.32,0.00014591,2]
[352839948,1739356255813,-648.96302937,0.00014591,2]
[352839949,1739356255822,-529.85,0.00014591,2]
[352839950,1739356255832,-500.0,0.00014591,2]
[352839951,1739356255841,-1069.82,0.00014591,2]
[352839952,1739356255851,-505.69,0.00014592,2]
[352839953,1739356255860,-4159.56,0.00014592,2]
[352839954,1739356255870,-507.54,0.00014592,2]
[352839955,1739356255879,-10088.41,0.00014592,2]
[352839956,1739356255888,-500.0,0.00014592,2]
[352839957,1739356255898,-3536.94,0.00014592,2]
[352839958,1739356255907,-151.0,0.00014592,2]
[352839959,1739356255917,-151.0,0.00014592,2]
[352839960,1739356255926,-500.0,0.00014592,2]
[352839961,1739356255936,-151.0,0.00014593,2]
[352839962,1739356255945,-151.0,0.00014593,2]
[352839963,1739356255955,-151.0,0.00014593,2]
[352839964,1739356255964,-500.0,0.00014594,2]
[352839965,1739356255974,-590.5245707,0.0001461,2]
[352839966,1739356255983,-219.234385,0.00014623,2]
[352839967,1739356255993,-219.234385,0.00014623,2]
[352839968,1739356256003,-154.032447,0.00014623,2]
[352839969,1739356256012,-152.985596,0.00014623,2]
[352839970,1739356256021,-151.0,0.00014623,2]
[352839971,1739356256032,-153.0,0.00014666,2]
[352839972,1739356256043,-153.0,0.00014666,2]
[352839973,1739356256053,-153.0,0.00014667,2]
[352839974,1739356256062,-153.0,0.00014667,2]
[352839975,1739356256073,-11450.31899264,0.00014694,2]
[352839976,1739356256083,-151.0,0.000147,2]
[352839977,1739356256092,-590.5245707,0.0001471,2]
[352839978,1739356256102,-502.51,0.00014727,2]
[352839979,1739356256111,-575.68,0.00014728,2]
[352839980,1739356256125,-1116.86,0.00014728,2]
[352839981,1739356256134,-788.88,0.00014728,2]
[352839982,1739356256144,-520.44,0.00014728,2]
[352839983,1739356256153,-1229.32,0.00014728,2]
[352839984,1739356256164,-529.85,0.00014728,2]
[352839985,1739356256174,-500.0,0.00014728,2]
[352839986,1739356256183,-1069.82,0.00014728,2]
[352839987,1739356256194,-505.69,0.00014729,2]
[352839988,1739356256204,-4159.56,0.00014729,2]
[352839989,1739356256213,-507.54,0.00014729,2]
[352839990,1739356256224,-10088.41,0.00014729,2]
[352839991,1739356256234,-500.0,0.00014729,2]
[352839992,1739356256244,-3536.94,0.00014729,2]
[352839993,1739356256255,-514.74,0.00014729,2]
[352839994,1739356256265,-500.0,0.00014731,2]
[352839995,1739356256275,-606.94565814,0.00014767,2]
[352839996,1739356256287,-590.5245707,0.0001481,2]
[352839997,1739356256380,-1000.0,0.0001486,2]
[352839998,1739356256390,-502.51,0.00014864,2]
[352839999,1739356256400,-575.68,0.00014865,2]
[352840000,1739356256411,-1116.86,0.00014865,2]
[352840001,1739356256421,-788.88,0.00014865,2]
[352840002,1739356256432,-520.44,0.00014865,2]
[352840003,1739356256442,-1229.32,0.00014865,2]
[352840004,1739356256451,-529.85,0.00014865,2]
[352840005,1739356256461,-500.0,0.00014865,2]
[352840006,1739356256471,-1069.82,0.00014865,2]
[352840007,1739356256481,-505.69,0.00014866,2]
[352840008,1739356256490,-4159.56,0.00014866,2]
[352840009,1739356256499,-507.54,0.00014866,2]
[352840010,1739356256509,-10088.41,0.00014866,2]
[352840011,1739356256518,-500.0,0.00014866,2]
[352840012,1739356256528,-3536.94,0.00014866,2]
[352840013,1739356256537,-264.96487,0.00014867,2]
[352840014,1739356256548,-264.96487,0.00014867,2]
[352840015,1739356256557,-151.0,0.00014867,2]
[352840016,1739356256566,-151.478029,0.00014868,2]
[352840017,1739356256576,-475.06016902,0.00014868,2]
[352840018,1739356256587,-590.5245707,0.0001491,2]
[352840019,1739356256598,-106865.30660625,0.0001497,2]
[352840020,1739356256607,-500.0,0.00014973,2]
[352840021,1739356256618,-500.0,0.00014973,2]
[352840022,1739356256627,-500.0,0.00014973,2]
[352840023,1739356256636,-500.0,0.00014973,2]
[352840024,1739356256646,-500.0,0.00014973,2]
[352840025,1739356256656,-500.0,0.00014973,2]
[352840026,1739356256667,-500.0,0.00014973,2]
[352840027,1739356256677,-36444.11550856,0.00015,2]
[352840028,1739356256723,-1170.1764493,0.00015,2]
[352840029,1739356256734,-1112.62807795,0.00015,2]
[352840035,1739357226107,-239.37409037,0.00010263,2]
[352840036,1739357229133,-916.97535838,0.00010263,2]
[352840037,1739357229154,-400.0,0.00010685,2]
[352840038,1739357229176,-7093.67777269,0.00011965,2]
[352840114,1739357432316,-500.0,0.00011964,2]
[352840115,1739357432327,-500.0,0.00011964,2]
[352840116,1739357432336,-500.0,0.00011964,2]
[352840117,1739357432346,-500.0,0.00011964,2]
[352840118,1739357432356,-500.0,0.00011964,2]
[352840119,1739357432366,-1899.95047419,0.00011966,2]
[352840120,1739357432375,-257.60488101,0.00011966,2]
[352840129,1739357437976,-42.39511899,0.00011966,2]
[352840130,1739357437986,-500.0,0.00011967,2]
[352840131,1739357437995,-500.0,0.00011967,2]
[352840132,1739357438005,-276.95964889,0.00011967,2]
[352840133,1739357438014,-504.7154657,0.00011967,2]
[352840134,1739357438024,-370.02369397,0.00011967,2]
[352840135,1739357438033,-500.0,0.00011967,2]
[352840136,1739357438043,-500.0,0.00011967,2]
[352840137,1739357438052,-503.69824701,0.00011967,2]
[352840138,1739357438062,-500.0,0.00011967,2]
[352840139,1739357438071,-500.0,0.00011967,2]
[352840140,1739357438080,-618.28490511,0.00011967,2]
[352840141,1739357438090,-802.07,0.00011967,2]
[352840142,1739357438099,-759.39,0.00011967,2]
[352840143,1739357438108,-500.0,0.00011967,2]
[352840144,1739357438119,-500.0,0.00011967,2]
[352840145,1739357438128,-519.86851617,0.00011967,2]
[352840146,1739357438138,-500.0,0.00011967,2]
[352840147,1739357438147,-500.0,0.00011967,2]
[352840148,1739357438156,-500.0,0.00011971,2]
[352840149,1739357438165,-500.0,0.00011971,2]
[352840150,1739357438175,-500.0,0.00011971,2]
[352840151,1739357438184,-500.0,0.00011971,2]
[352840152,1739357438193,-500.0,0.00011971,2]
[352840153,1739357438202,-500.0,0.00011971,2]
[352840154,1739357438211,-500.0,0.00011971,2]
[352840155,1739357438220,-896.96,0.00011971,2]
[352840156,1739357438230,-500.0,0.00011971,2]
[352840157,1739357438239,-500.0,0.00011971,2]
[352840158,1739357438248,-500.0,0.00011971,2]
[352840159,1739357438258,-500.0,0.00011971,2]
[352840160,1739357438267,-500.0,0.00011971,2]
[352840161,1739357438276,-500.0,0.00011971,2]
[352840162,1739357438286,-500.0,0.00011976,2]
[352840163,1739357438295,-500.0,0.00011976,2]
[352840164,1739357438304,-500.0,0.00011976,2]
[352840165,1739357438313,-500.0,0.00011976,2]
[352840166,1739357438322,-500.0,0.00011976,2]
[352840167,1739357438332,-500.0,0.00011976,2]
[352840168,1739357438341,-317.68,0.00011976,2]
[352840169,1739357438350,-500.0,0.00011976,2]
[352840170,1739357438359,-500.0,0.00011976,2]
[352840171,1739357438370,-500.0,0.00011976,2]
[352840172,1739357438379,-500.0,0.00011976,2]
[352840173,1739357438388,-500.0,0.00011976,2]
[352840174,1739357438398,-500.0,0.00011976,2]
[352840175,1739357438552,-302.03,0.00011976,2]
[352840176,1739357438562,-500.0,0.00011976,2]
[352840177,1739357438572,-500.0,0.00011976,2]
[352840178,1739357438582,-500.0,0.00011976,2]
[352840179,1739357438591,-500.0,0.00011976,2]
[352840180,1739357438603,-8240.59,0.00011976,2]
[352840181,1739357438615,-500.0,0.00011976,2]
[352840182,1739357438624,-500.0,0.00011976,2]
[352840183,1739357438634,-500.0,0.00011976,2]
[352840184,1739357438643,-500.0,0.00011976,2]
[352840185,1739357438652,-500.0,0.00011976,2]
[352840186,1739357438661,-500.0,0.00011976,2]
[352840187,1739357438672,-2708.41,0.00011976,2]
[352840188,1739357438682,-500.0,0.00011976,2]
[352840189,1739357438692,-500.0,0.00011976,2]
[352840190,1739357438704,-2475.28,0.00011982,2]
[352840191,1739357438713,-500.0,0.00011982,2]
[352840192,1739357438722,-500.0,0.00011988,2]
[352840193,1739357438731,-500.0,0.00011988,2]
[352840194,1739357438740,-500.0,0.00011988,2]
[352840195,1739357438750,-468.921,0.00011988,2]
[352840196,1739357438759,-500.0,0.00011988,2]
[352840197,1739357438768,-500.0,0.00011988,2]
[352840198,1739357438777,-205.00905593,0.00011988,2]
[352840199,1739357438787,-500.0,0.00011988,2]
[352840200,1739357438796,-619.72482855,0.00011988,2]
[352840201,1739357438805,-500.0,0.00011988,2]
[352840202,1739357438814,-500.0,0.00011988,2]
[352840203,1739357438823,-500.0,0.00011988,2]
[352840204,1739357438833,-500.0,0.00012101,2]
[352840205,1739357438842,-500.0,0.00012101,2]
[352840206,1739357438851,-290.95,0.00012101,2]
[352840207,1739357438860,-500.0,0.00012104,2]
[352840208,1739357438870,-802.07,0.00012104,2]
[352840209,1739357438879,-759.39,0.00012104,2]
[352840210,1739357438889,-500.0,0.00012104,2]
[352840211,1739357438898,-500.0,0.00012104,2]
[352840212,1739357438907,-500.0,0.00012104,2]
[352840213,1739357438917,-500.0,0.00012108,2]
[352840214,1739357438926,-500.0,0.00012108,2]
[352840215,1739357438936,-500.0,0.00012108,2]
[352840216,1739357438945,-500.0,0.00012108,2]
[352840217,1739357438955,-500.0,0.00012108,2]
[352840218,1739357438964,-500.0,0.00012108,2]
[352840219,1739357438973,-500.0,0.00012108,2]
[352840220,1739357438983,-896.96,0.00012108,2]
[352840221,1739357438992,-500.0,0.00012108,2]
[352840222,1739357439001,-529.92262871,0.00012108,2]
[352840223,1739357439010,-343.31,0.00012108,2]
[352840224,1739357439019,-500.0,0.00012108,2]
[352840225,1739357439028,-500.0,0.00012108,2]
[352840226,1739357439038,-500.0,0.00012113,2]
[352840227,1739357439047,-500.0,0.00012113,2]
[352840228,1739357439056,-500.0,0.00012113,2]
[352840229,1739357439066,-576.05,0.00012113,2]
[352840230,1739357439075,-500.0,0.00012113,2]
[352840231,1739357439084,-500.0,0.00012113,2]
[352840232,1739357439092,-500.0,0.00012113,2]
[352840233,1739357439102,-500.0,0.00012113,2]
[352840234,1739357439111,-500.0,0.00012113,2]
[352840235,1739357439121,-8240.59,0.00012113,2]
[352840236,1739357439130,-500.0,0.00012113,2]
[352840237,1739357439139,-500.0,0.00012113,2]
[352840238,1739357439149,-500.0,0.00012113,2]
[352840239,1739357439158,-500.0,0.00012113,2]
[352840240,1739357439167,-500.0,0.00012113,2]
[352840241,1739357439176,-2708.41,0.00012113,2]
[352840242,1739357439185,-500.0,0.00012113,2]
[352840243,1739357439195,-500.0,0.00012113,2]
[352840244,1739357439204,-2475.28,0.00012119,2]
[352840245,1739357439213,-500.0,0.00012119,2]
[352840246,1739357439222,-2398.55878594,0.00012124,3]
[352840247,1739357439317,-38455.55086173,0.00012124,3]
[352840248,1739357439327,-500.0,0.00012125,2]
[352840249,1739357439337,-500.0,0.00012238,2]
[352840250,1739357439346,-500.0,0.00012241,2]
[352840251,1739357439355,-802.07,0.00012241,2]
[352840252,1739357439365,-759.39,0.00012241,2]
[352840253,1739357439375,-500.0,0.00012241,2]
[352840254,1739357439384,-500.0,0.00012245,2]
[352840255,1739357439393,-500.0,0.00012245,2]
[352840256,1739357439404,-500.0,0.00012245,2]
[352840257,1739357439413,-500.0,0.00012245,2]
[352840258,1739357439422,-500.0,0.00012245,2]
[352840259,1739357439431,-562.42,0.00012245,2]
[352840260,1739357439440,-500.0,0.00012245,2]
[352840261,1739357439450,-896.96,0.00012245,2]
[352840262,1739357439459,-500.0,0.00012245,2]
[352840263,1739357439468,-500.0,0.00012245,2]
[352840264,1739357439477,-500.0,0.00012245,2]
[352840266,1739357439487,-500.0,0.00012249,2]
[352840268,1739357439496,-580.64092283,0.00012249,2]
[352840270,1739357439505,-500.0,0.0001225,2]
[352840272,1739357439515,-500.0,0.0001225,2]
[352840274,1739357439527,-500.0,0.0001225,2]
[352840276,1739357439539,-500.0,0.0001225,2]
[352840279,1739357439550,-500.0,0.0001225,2]
[352840281,1739357439559,-500.0,0.0001225,2]
[352840283,1739357439571,-500.0,0.0001225,2]
[352840285,1739357439580,-500.0,0.0001225,2]
[352840287,1739357439589,-8240.59,0.0001225,2]
[352840289,1739357439599,-500.0,0.0001225,2]
[352840291,1739357439611,-500.0,0.0001225,2]
[352840293,1739357439622,-500.0,0.0001225,2]
[352840295,1739357439631,-500.0,0.0001225,2]
[352840297,1739357439639,-2708.41,0.0001225,2]
[352840299,1739357439648,-500.0,0.0001225,2]
[352840302,1739357439657,-500.0,0.0001225,2]
[352840303,1739357439667,-2475.28,0.00012256,2]
[352840304,1739357439678,-500.0,0.00012262,2]
[352840305,1739357439689,-500.0,0.00012375,2]
[352840306,1739357439699,-500.0,0.00012378,2]
[352840307,1739357439708,-802.07,0.00012378,2]
[352840308,1739357439717,-759.39,0.00012378,2]
[352840309,1739357439727,-500.0,0.00012378,2]
[352840310,1739357439736,-500.0,0.00012382,2]
[352840311,1739357439745,-500.0,0.00012382,2]
[352840312,1739357439756,-500.0,0.00012382,2]
[352840313,1739357439765,-500.0,0.00012382,2]
[352840314,1739357439775,-500.0,0.00012382,2]
[352840315,1739357439784,-896.96,0.00012382,2]
[352840317,1739357439793,-500.0,0.00012382,2]
[352840318,1739357439802,-500.0,0.00012382,2]
[352840320,1739357439811,-465.84,0.00012382,2]
[352840321,1739357439821,-500.0,0.00012387,2]
[352840322,1739357439831,-500.0,0.00012387,2]